[Event "Warsaw Chess Open-B 2022"]
[Site "Warsaw"]
[Date "2022.07.25"]
[Round "9.5"]
[White "Vasynda, Oleksandr"]
[Black "Smykalo, Severyn"]
[Result "1-0"]
[ECO "A45"]
[WhiteElo "1802"]
[BlackElo "1921"]
[Annotator "TA"]
[PlyCount "97"]
[EventDate "2022.07.18"]
[EventType "swiss"]
[EventCountry "POL"]
[SourceTitle "playchess.com"]
[Source "ChessBase"]
[SourceQuality "1"]
[TimeControl "40/5400+30:1800+30"]

{[%evp 9,97,-50,13,-13,-12,-14,3,-12,-20,-37,-21,-40,-47,-50,-44,-54,-29,-70,-78,-69,-68,-78,-65,-79,-50,-58,-60,-73,-78,-75,-54,-69,-6,-14,-12,-14,-15,-9,7,-2,0,-35,-35,-37,-25,-68,0,-10,-5,-11,0,0,15,12,31,0,34,0,60,68,81,64,237,256,402,356,831,595,3354,3084,12845,12847,12827,12827,5553,5538,5518,5167,5185,1919,5114,5102,29976,29971,29984,29985,29985,29979,29985,29986]} 1. d4 {[%emt 0:00:03]} Nf6 {[%emt 0:00:08]} 2. Bf4 {[%emt 0:00:08]} c5 {[%emt 0:00:43]} 3. e3 {[%emt 0:00:10]} Qb6 {[%emt 0:00:35]} 4. Nc3 {[%emt 0:03:01]} a6 {[%emt 0:09:43]} 5. dxc5 {[%emt 0:06:50]} Qxc5 {[%emt 0:00:57]} (5... Qxb2 $15 6. Na4 Qa3) 6. Qd4 {[%emt 0:04:31] A45: Trompowsky Attack.} Qxd4 {[%emt 0:12:18]} 7. exd4 {[%emt 0:00:04]} b5 {[%emt 0:00:22] [#] Inhibits Na4.} 8. Bd3 $146 {[%emt 0:06:29] The position is equal.} ({Predecessor:} 8. O-O-O Bb7 9. f3 d6 10. Bd3 Nbd7 11. Re1 Kd8 12. Nge2 g6 13. Ng3 Bg7 14. Re2 {½-½ (29) Hernandez Leon,A (2319)-Berjon Garcia,S (2066) Santa Cruz de Tenerife 2019}) 8... Bb7 {[%emt 0:01:26]} 9. f3 {[%emt 0:00:53]} Nc6 {[%emt 0:01:08]} 10. Nge2 {[%emt 0:00:41]} Nb4 {[%emt 0:00:54]} 11. Kd2 {[%emt 0:00:35]} Nxd3 {[%emt 0:02:01]} 12. Kxd3 {[%emt 0:00:24]} e6 {[%emt 0:00:22]} (12... Rc8 {is interesting.} 13. Rhb1 Rg8 14. b4 g5) 13. Ne4 {[%emt 0:01:10]} Nxe4 {[%emt 0:01:48]} 14. fxe4 {[%emt 0:00:08]} Be7 {[%emt 0:00:07]} 15. Rhf1 {[%emt 0:03:18]} O-O {[%emt 0:02:01]} 16. g4 {[%emt 0:00:30]} f5 {[%emt 0:02:13]} 17. gxf5 {[%emt 0:04:22]} exf5 {[%emt 0:00:14]} 18. Ng3 {[%emt 0:01:47]} fxe4+ {[%emt 0:03:03]} 19. Nxe4 {[%emt 0:00:11]} Bd5 {[%emt 0:00:14] [#] Strongly threatening ...Bc4+. This bishop pair is nice.} 20. b3 {[%emt 0:01:10] Inhibits Bc4+.} Rfc8 {[%emt 0:09:38] Inhibits c4.} (20... Rac8 $15) 21. Rae1 {[%emt 0:03:15]} Bb4 {[%emt 0:01:19] Threatens to win with ...Bxe4+.} 22. Bd2 {[%emt 0:00:37]} Bf8 {[%emt 0:01:52]} 23. Rg1 {[%emt 0:01:06] Nf6+ is the strong threat.} Kh8 {[%emt 0:02:34]} 24. Bf4 {[%emt 0:00:58]} Rc6 {[%emt 0:03:32]} 25. c3 {[%emt 0:17:40][%cal Oe4c5]} (25. Nc5 $5) 25... Rac8 {[%emt 0:03:24]} 26. Bd2 {[%emt 0:01:18][%cal Oe4c5]} Bf7 {[%emt 0:00:49]} 27. Rgf1 {[%emt 0:04:45]} Bg6 {[%emt 0:02:49]} (27... Kg8 $15) 28. d5 $11 {[%emt 0:01:12]} Rf6 {[%emt 0:06:00]} 29. Kd4 {[%emt 0:09:14]} Rxf1 {[%emt 0:06:49]} (29... Rb6 {feels hotter.} 30. h4 a5 31. Rh1 h5) 30. Rxf1 {[%emt 0:00:08]} d6 {[%emt 0:01:23]} 31. Re1 {[%emt 0:03:14]} h6 {[%emt 0:03:29]} 32. Ng3 {[%emt 0:03:47]} (32. Bf4 $5 {[%cal Re4d6]} Bxe4 33. Rxe4 $14) 32... Rc7 {[%emt 0:01:23]} 33. Ne4 {[%emt 0:03:15]} (33. Re6 $5 {[%cal Re6g6]} Bf7 34. Ne4 $11) 33... Be7 {[%emt 0:01:28]} ({Black should play} 33... Rc8 $11) 34. c4 $14 {[%emt 0:00:32]} bxc4 {[%emt 0:00:54]} 35. bxc4 {[%emt 0:00:03]} Rb7 $2 {[%emt 0:01:17] [#] Prevents Bb4. This costs Black the game.} (35... Bxe4 $14 36. Rxe4 Kg8) 36. Nxd6 $1 $18 {[%emt 0:03:33]} Bxd6 {[%emt 0:02:18]} (36... Bf6+ $142 37. Kc5 Rb2) 37. Re6 $1 {[%emt 0:00:07][%csl LRd6,LRg6]} Rb6 $2 {[%emt 0:02:03]} (37... Kh7) 38. Ba5 {[%emt 0:00:23]} Bc5+ {[%emt 0:00:23]} 39. Kxc5 {[%emt 0:00:12]} Rxe6 {[%emt 0:00:03]} 40. dxe6 {[%emt 0:00:07][%mdl 4096] Endgame White wants to mate with Kd6. KB-KB} Kg8 {[%emt 0:00:12]} 41. Kd6 {[%emt 0:30:28]} Kf8 {[%emt 0:30:09]} 42. Kd7 {[%emt 0:00:07]} Be8+ {[%emt 0:00:07]} 43. Kd8 {[%emt 0:00:13] White threatens Bb4+ and mate.} Ba4 {[%emt 0:00:19]} 44. Bb4+ {[%emt 0:00:41]} Kg8 {[%emt 0:00:09]} 45. c5 {[%emt 0:01:10][%cal Bc4c5,Bc5c6][%mdl 32]} g5 {[%emt 0:00:10]} 46. Kc7 {[%emt 0:00:13] White mates.} Kf8 {[%emt 0:00:27]} 47. c6+ {[%emt 0:00:16]} Ke8 {[%emt 0:00:14]} 48. Kb6 {[%emt 0:00:22]} Kd8 {[%emt 0:01:20]} 49. Kb7 {[%emt 0:00:06] Weighted Error Value: White=0.16 (very precise) /Black=0.48} 1-0

[Event "Warsaw Chess Open-B 2022"]
[Site "Warsaw"]
[Date "2022.07.25"]
[Round "9.6"]
[White "Radecki, Wojciech"]
[Black "Arciszewska, Zuzanna"]
[Result "1-0"]
[ECO "C77"]
[WhiteElo "1907"]
[BlackElo "1574"]
[Annotator "TA"]
[PlyCount "129"]
[EventDate "2022.07.18"]
[EventType "swiss"]
[EventCountry "POL"]
[SourceTitle "playchess.com"]
[Source "ChessBase"]
[SourceQuality "1"]
[TimeControl "40/5400+30:1800+30"]

{[%evp 12,129,13,18,24,17,16,16,17,18,33,27,62,56,51,56,45,46,113,113,116,122,233,133,127,144,151,66,71,68,66,68,72,81,72,81,98,69,122,88,114,110,140,85,86,66,126,130,202,191,391,386,384,181,206,172,176,180,165,145,154,145,147,90,150,73,74,73,50,61,73,20,39,43,80,18,85,15,29,6,7,4,4,5,5,4,4,0,6,0,12,0,21,13,38,31,122,131,591,89,103,117,129,77,126,126,136,153,445,445,388,141,153,112,116,124,445,445,12834,12004]} 1. e4 {[%emt 0:00:02]} e5 {[%emt 0:00:10]} 2. Nf3 {[%emt 0:00:08]} Nc6 {[%emt 0:00:15]} 3. Bb5 {[%emt 0:00:19]} a6 {[%emt 0:00:19]} 4. Ba4 {[%emt 0:00:09]} Nf6 {[%emt 0:00:35]} 5. d3 {[%emt 0:00:11]} b5 {[%emt 0:00:24]} 6. Bb3 {[%emt 0:00:05]} Bc5 {[%emt 0:00:49]} 7. Bg5 {[%emt 0:01:50]} (7. c3 $5 {[%cal Rd3d4]}) 7... h6 {[%emt 0:03:18] C77: Ruy Lopez: 3...a6 4 Ba4 Nf6, unusual lines.} 8. Bh4 {[%emt 0:00:23]} d6 {[%emt 0:04:44]} 9. c3 {[%emt 0:00:21]} Bb6 {[%emt 0:03:05] The position is equal.} 10. Nbd2 {[%emt 0:05:06] 10.a4 deserves study.} Bb7 {[%emt 0:04:20]} 11. Nf1 {[%emt 0:02:34] [#]} a5 $146 {[%emt 0:16:55]} ({Predecessor:} 11... g5 12. Bg3 Qd7 13. Ne3 O-O-O 14. Qe2 Kb8 15. O-O Rdf8 16. a4 h5 17. h4 g4 {1-0 (35) Czarnota,P (2386)-Motyka,M (2231) Leba 2004}) 12. a4 $1 {[%emt 0:01:14]} b4 {[%emt 0:00:28]} 13. Ne3 {[%emt 0:00:16]} bxc3 {[%emt 0:05:58]} 14. bxc3 {[%emt 0:00:09]} Ne7 {[%emt 0:02:17]} (14... Nb8 $14) 15. Bxf6 $16 {[%emt 0:05:19]} gxf6 {[%emt 0:00:03]} 16. Nh4 {[%emt 0:00:29]} Ng6 {[%emt 0:09:34]} (16... d5 $16) 17. Nxg6 {[%emt 0:01:16]} (17. Nhf5 $6 h5 18. Rb1 Ba6 $16) (17. Qh5 $1 $18 Qe7 18. Nxg6 fxg6 19. Qxg6+ Kd7 20. Nf5) 17... fxg6 {[%emt 0:00:25]} 18. Qg4 {[%emt 0:00:07]} g5 {[%emt 0:01:11]} 19. Be6 {[%emt 0:08:09]} (19. Qe6+ $6 Qe7 $14) (19. Qh5+ $16 Kd7 20. Qg4+ Ke8 21. Nf5 (21. Qe6+ Qe7 $14)) 19... h5 {[%emt 0:03:21]} 20. Qf5 {[%emt 0:03:07] Threatening mate with Qg6+.} Rh6 {[%emt 0:02:20] Prevents Qg6+.} 21. Nc4 {[%emt 0:05:57]} Bc8 {[%emt 0:01:38]} 22. Rb1 $40 {[%emt 0:01:34][%cal Ob1b6][%mdl 128] Strongly threatening Rxb6! White is out for blood.} Ke7 {[%emt 0:02:43]} 23. Bxc8 {[%emt 0:01:16] White is much more active. The black rooks are badly placed.} (23. Nxb6 Bxe6 24. Nd5+ Kf7 $11) 23... Qxc8 {[%emt 0:00:02]} 24. Qf3 {[%emt 0:06:38]} Ra6 {[%emt 0:06:29]} (24... Bc5 $14) 25. h3 {[%emt 0:05:47]} Rh8 {[%emt 0:03:54]} 26. Rb5 {[%emt 0:01:09]} Qd7 {[%emt 0:00:44]} 27. Kd2 {[%emt 0:01:46]} (27. Qe2 $142) 27... Bc5 {[%emt 0:02:07]} 28. Kc2 {[%emt 0:08:09]} (28. Nxa5 $6 Rha8 29. Nc4 (29. Qxh5 Rxa5 30. Rxa5 Rxa5 $19) 29... Rxa4 $11) 28... c6 {[%emt 0:03:50]} (28... Kf7 $14) 29. Rb3 {[%emt 0:01:07]} (29. Rxa5 $6 Rxa5 30. Nxa5 Ra8 $11) 29... d5 {[%emt 0:00:33]} (29... Ra7 $16) 30. Rhb1 $1 $18 {[%emt 0:02:45] Rb7 is the strong threat.} g4 $2 {[%emt 0:03:40]} (30... dxc4 $2 31. Rb7 Ra7 32. Rxd7+ Rxd7 33. d4 (33. dxc4 Rhd8 $18) 33... exd4 34. Qf5 $18) (30... Ra7 {might work better.}) 31. hxg4 {[%emt 0:03:01]} Qxg4 {[%emt 0:01:19] [#]} (31... dxc4 $2 32. Rb7 Ra7 33. Rxd7+ Rxd7 34. d4 exd4 35. Qf5 $18) (31... hxg4 $2 32. Qe2 $1 dxc4 33. Rb7 $18) 32. Nxe5 {[%emt 0:08:06][%mdl 512] Dancing on a razor blade.} Qxf3 {[%emt 0:01:34]} (32... fxe5 {leads to mate.} 33. Rb7+ Kd6 34. Qf6+ Qe6 35. Qxh8) 33. Nxf3 {[%emt 0:00:03]} dxe4 {[%emt 0:00:54]} 34. Re1 {[%emt 0:02:25]} ({Don't take} 34. dxe4 $6 Bxf2 35. e5 fxe5 $16) 34... Bxf2 {[%emt 0:01:39]} 35. Rxe4+ {[%emt 0:00:05]} Kf7 {[%emt 0:00:27]} 36. Rb7+ {[%emt 0:00:16]} Kg6 {[%emt 0:00:44]} 37. Kd2 {[%emt 0:01:10]} (37. d4 $142) 37... Rb6 {[%emt 0:05:13]} (37... Ra7 $142 38. Rb1 (38. Nh4+ Kg5 $16) 38... Kf7) 38. Rxb6 {[%emt 0:01:12]} (38. Nh4+ $142 Kh6 39. Rxb6 Bxb6 40. Re6) 38... Bxb6 $16 {[%emt 0:00:03][%mdl 4096] Endgame KRB-KRN} 39. Re6 {[%emt 0:00:25]} Rc8 {[%emt 0:01:20]} 40. d4 {[%emt 0:00:10]} Kf7 {[%emt 0:00:43]} 41. Re2 {[%emt 0:31:06]} ({Better is} 41. d5 $1 $16) 41... Rd8 {[%emt 0:30:43]} 42. Kd3 {[%emt 0:00:19]} c5 {[%emt 0:00:49]} 43. Kc4 {[%emt 0:02:18]} (43. Rb2 $16 Bc7 44. Rb7) 43... cxd4 $11 {[%emt 0:00:19]} 44. cxd4 {[%emt 0:00:12]} ({White should play} 44. Nxd4 $16 {Threatening Nc6.} Rg8 45. Kb5) 44... Rc8+ {[%emt 0:00:15]} 45. Kb5 {[%emt 0:00:14]} Bd8 {[%emt 0:00:13]} 46. d5 {[%emt 0:02:40] aiming for Nd4.} Be7 {[%emt 0:00:15]} 47. Kxa5 {[%emt 0:02:10]} Rc5+ {[%emt 0:00:09]} 48. Kb6 {[%emt 0:00:44][%cal Oe2e7] Black must now prevent Rxe7+!} Rxd5 {[%emt 0:00:12]} 49. Kc6 {[%emt 0:00:37]} Rc5+ {[%emt 0:00:33]} 50. Kb6 {[%emt 0:00:47][%cal Oe2e7]} Rd5 {[%emt 0:00:16]} 51. Ra2 {[%emt 0:01:35]} Kg6 {[%emt 0:02:14]} 52. Kc6 {[%emt 0:00:41]} Ra5 {[%emt 0:00:54]} 53. Nd4 {[%emt 0:00:38]} Kg5 {[%emt 0:01:12]} (53... Bb4 $14) 54. Nb3 $16 {[%emt 0:00:54]} Ra8 {[%emt 0:01:00][%mdl 8192]} (54... Ra6+ $16 {is tougher.} 55. Kb5 Ra8) 55. Kb7 $2 {[%emt 0:00:23]} (55. a5 $18) 55... Rd8 {[%emt 0:00:31]} 56. a5 {[%emt 0:00:45][%cal Ba4a5,Ba5a6][%mdl 32]} Rd3 {[%emt 0:00:52]} 57. Rb2 {[%emt 0:00:45]} (57. Nd2 $142 f5 58. a6) 57... Rd7+ {[%emt 0:01:52]} (57... Ba3 $142 58. Rb1 h4) 58. Kc6 {[%emt 0:00:49]} Rd6+ {[%emt 0:00:18] [#]} 59. Kc7 $1 {[%emt 0:00:10]} Rd3 $2 {[%emt 0:01:32]} (59... f5 $16 {was worth a try.} 60. Ra2 Rg6) 60. a6 $18 {[%emt 0:00:42]} Bd6+ {[%emt 0:00:54] [#]} 61. Kc6 $2 {[%emt 0:02:34]} (61. Kc8 $1 $18 {is the precise move to win.}) 61... Be5 $16 {[%emt 0:00:46]} 62. Rb1 {[%emt 0:02:08]} Rd6+ {[%emt 0:00:40]} 63. Kb5 {[%emt 0:01:37]} Rd5+ {[%emt 0:00:13][%mdl 8192]} (63... Rd8 $16 {is a better chance.}) 64. Nc5 $18 {[%emt 0:01:09] Threatens to win with a7.} Bb8 {[%emt 0:00:13]} (64... Bd4 $142) 65. Kc4 {[%emt 0:00:28][%csl LRb8,LRd5] Weighted Error Value: White=0.36/Black=0.50} 1-0

[Event "Warsaw Chess Open-B 2022"]
[Site "Warsaw"]
[Date "2022.07.25"]
[Round "9.7"]
[White "Sacharewicz, Krzysztof"]
[Black "Pawicka, Magdalena"]
[Result "1-0"]
[ECO "A46"]
[WhiteElo "1832"]
[BlackElo "1781"]
[Annotator "NA RC COMBH"]
[PlyCount "111"]
[EventDate "2022.07.18"]
[EventType "swiss"]
[EventCountry "POL"]
[SourceTitle "playchess.com"]
[Source "ChessBase"]
[SourceQuality "1"]
[TimeControl "40/5400+30:1800+30"]

1. d4 {[%emt 0:06:55]} Nf6 {[%emt 0:00:08]} 2. Nf3 {[%emt 0:00:05]} d5 {[%emt 0:00:34]} 3. g3 {[%emt 0:00:48]} c5 {[%emt 0:01:45]} 4. c3 {[%emt 0:01:03]} Nc6 {[%emt 0:02:53]} 5. Bg2 {[%emt 0:00:29]} e6 {[%emt 0:05:40]} 6. O-O {[%emt 0:00:13]} Bd6 {[%emt 0:00:26]} 7. Nbd2 O-O {[%emt 0:07:57]} 8. Re1 {[%emt 0:09:33]} cxd4 {[%emt 0:07:27]} 9. cxd4 {[%emt 0:00:26]} b6 {[%emt 0:01:36]} 10. b3 {[%emt 0:08:10]} Bb7 {[%emt 0:10:52]} 11. Bb2 {[%emt 0:00:13]} Rc8 {[%emt 0:01:39]} 12. Rc1 {[%emt 0:01:00]} Qe7 {[%emt 0:01:42]} 13. Ne5 Ba3 {[%emt 0:12:36]} 14. Nxc6 {[%emt 0:08:53]} Bxc6 {[%emt 0:00:56]} 15. Qc2 {[%emt 0:00:05]} Bb7 {[%emt 0:02:21]} 16. Qb1 {[%emt 0:00:19]} Bb4 {[%emt 0:00:56]} 17. Red1 {[%emt 0:11:08]} Ba6 {[%emt 0:01:06]} 18. Bf1 {[%emt 0:00:25]} h5 {[%emt 0:13:16]} 19. Nf3 {[%emt 0:04:01]} Ne4 {[%emt 0:00:40]} 20. Rxc8 {[%emt 0:00:30]} Rxc8 {[%emt 0:00:37]} 21. Rc1 {[%emt 0:00:02]} Nc3 {[%emt 0:04:52]} 22. Bxc3 {[%emt 0:02:13]} Bxc3 {[%emt 0:00:36]} 23. e3 {[%emt 0:02:28]} Bxf1 {[%emt 0:00:25]} 24. Kxf1 {[%emt 0:00:02]} b5 {[%emt 0:04:31]} 25. Ne5 {[%emt 0:02:52]} b4 {[%emt 0:00:44]} 26. Qd3 {[%emt 0:00:02]} Qb7 {[%emt 0:04:23]} 27. Qe2 {[%emt 0:03:18]} g6 {[%emt 0:00:26]} 28. Nd3 {[%emt 0:00:22]} Kg7 {[%emt 0:04:19]} 29. Nc5 {[%emt 0:01:18]} Qe7 {[%emt 0:00:45]} 30. Na4 {[%emt 0:03:31]} e5 {[%emt 0:01:23]} 31. dxe5 {[%emt 0:01:43]} Qxe5 {[%emt 0:00:10]} 32. Qd3 {[%emt 0:00:02]} Qe4 {[%emt 0:02:14]} 33. Qxe4 {[%emt 0:04:22]} dxe4 {[%emt 0:00:06]} 34. Ke2 {[%emt 0:00:59]} f5 {[%emt 0:00:54]} 35. a3 {[%emt 0:05:29]} a5 {[%emt 0:00:41]} 36. axb4 {[%emt 0:00:02]} axb4 {[%emt 0:00:11]} 37. Nxc3 {[%emt 0:00:39]} bxc3 {[%emt 0:00:12]} 38. h4 {[%emt 0:00:39]} Kf6 {[%emt 0:00:40]} 39. Kd1 {[%emt 0:05:00]} g5 {[%emt 0:03:22]} 40. Kc2 {[%emt 0:00:32]} gxh4 {[%emt 0:00:10]} 41. gxh4 {[%emt 0:30:14]} Rg8 {[%emt 0:30:38]} 42. Kxc3 {[%emt 0:00:02]} Rg2 {[%emt 0:00:20]} 43. Rf1 {[%emt 0:00:29]} Rh2 {[%emt 0:00:26]} 44. b4 {[%emt 0:00:01]} Rxh4 {[%emt 0:00:24]} 45. b5 {[%emt 0:00:01]} Rg4 {[%emt 0:02:02]} 46. b6 {[%emt 0:00:45]} Ke5 {[%emt 0:02:36]} 47. Kc4 {[%emt 0:00:01]} Rg8 {[%emt 0:00:50]} 48. Kb5 {[%emt 0:00:11]} h4 {[%emt 0:00:31]} 49. Rh1 {[%emt 0:01:00]} f4 {[%emt 0:00:19]} 50. Rxh4 {[%emt 0:00:36]} fxe3 {[%emt 0:00:05]} 51. fxe3 {[%emt 0:00:03]} Kd5 {[%emt 0:00:27]} 52. Rh5+ {[%emt 0:01:16]} Kd6 {[%emt 0:00:05]} 53. Rh1 {[%emt 0:00:43]} Rg3 {[%emt 0:00:29]} 54. Rd1+ {[%emt 0:00:38]} Ke5 {[%emt 0:00:10]} 55. b7 {[%emt 0:00:10]} Rg8 {[%emt 0:00:21]} 56. Kb6 {[%emt 0:00:12]} 1-0

[Event "Warsaw Chess Open-B 2022"]
[Site "Warsaw"]
[Date "2022.07.25"]
[Round "9.8"]
[White "Masalski, Pawel"]
[Black "Kotarski, Bartosz"]
[Result "0-1"]
[ECO "B40"]
[WhiteElo "1550"]
[BlackElo "1829"]
[Annotator "NA RC COMBH"]
[PlyCount "58"]
[EventDate "2022.07.18"]
[EventType "swiss"]
[EventCountry "POL"]
[SourceTitle "playchess.com"]
[Source "ChessBase"]
[SourceQuality "1"]
[TimeControl "40/5400+30:1800+30"]

1. e4 {[%emt 0:00:02]} c5 {[%emt 0:00:05]} 2. Nf3 {[%emt 0:00:07]} e6 {[%emt 0:00:06]} 3. c3 {[%emt 0:00:04]} Nf6 {[%emt 0:00:20]} 4. e5 {[%emt 0:00:12]} Nd5 {[%emt 0:00:07]} 5. b4 {[%emt 0:00:03]} cxb4 {[%emt 0:01:15]} 6. c4 {[%emt 0:00:09]} Nc7 {[%emt 0:01:18]} 7. d4 $15 {[%emt 0:00:15]} d5 {[%emt 0:01:14]} 8. exd6 {[%emt 0:00:09]} Bxd6 {[%emt 0:00:10]} 9. Bd3 {[%emt 0:00:06]} Be7 {[%emt 0:03:08]} 10. a3 {[%emt 0:11:06]} Nc6 {[%emt 0:01:46]} 11. Be3 {[%emt 0:00:54]} bxa3 {[%emt 0:00:30]} 12. O-O {[%emt 0:03:39]} a2 {[%emt 0:09:43]} 13. Nc3 {[%emt 0:03:53]} O-O {[%emt 0:00:14]} 14. Rxa2 {[%emt 0:09:46]} Nb4 {[%emt 0:03:15]} 15. Rd2 {[%emt 0:00:16]} Nxd3 {[%emt 0:00:07]} 16. Rxd3 {[%emt 0:00:07]} b6 {[%emt 0:00:12]} 17. Ne5 {[%emt 0:11:58]} Bb7 {[%emt 0:01:40]} 18. f4 {[%emt 0:08:23]} f6 {[%emt 0:03:52]} 19. Nf3 {[%emt 0:08:12]} Ba6 {[%emt 0:00:57]} 20. Qb3 {[%emt 0:02:42]} b5 {[%emt 0:12:00]} 21. cxb5 {[%emt 0:06:36]} Bxb5 {[%emt 0:01:26]} 22. Nxb5 {[%emt 0:00:25]} Rb8 {[%emt 0:00:05]} 23. Qa2 {[%emt 0:01:59]} Rxb5 {[%emt 0:00:29]} 24. Qxa7 {[%emt 0:00:43]} Nd5 {[%emt 0:00:33]} 25. Rc1 {[%emt 0:04:17]} Rf7 {[%emt 0:02:47]} 26. Qa6 {[%emt 0:02:00]} Qd7 {[%emt 0:01:07]} 27. g3 {[%emt 0:01:57]} Rb8 {[%emt 0:04:59]} 28. Bf2 {[%emt 0:00:44]} Nb4 {[%emt 0:00:54]} 29. Qa4 {[%emt 0:04:08]} Qxa4 0-1